lending/lending_fUSD_20240604
["ID","MTS","AMOUNT","RATE_DAILY","PERIOD"]
[328533515,1717499454512,-489.99158714,0.00029998,6]
[328533516,1717499454522,-500.0,0.00029998,6]
[328533517,1717499454531,-500.0,0.00029998,6]
[328533518,1717499454540,-1945.47,0.00029998,6]
[328533519,1717499454549,-505.47,0.00029998,6]
[328533520,1717499454559,-756.43,0.00029998,6]
[328533521,1717499454568,-587.0,0.00029998,6]
[328533523,1717499454578,-151.0,0.00029998,7]
[328533524,1717499454587,-500.0,0.00029998,6]
[328533525,1717499454597,-500.0,0.00029998,6]
[328533526,1717499454606,-769.44,0.00029998,6]
[328533527,1717499454616,-201.88575128,0.00029999,2]
[328533528,1717499454626,-210.77,0.00029999,6]
[328533529,1717499454636,-500.0,0.00029999,6]
[328533530,1717499454645,-500.0,0.00029999,6]
[328533531,1717499454654,-549.93700291,0.00029999,6]
[328533532,1717499454663,-500.0,0.00029999,6]
[328533533,1717499454673,-500.0,0.00029999,6]
[328533534,1717499454682,-500.0,0.00029999,6]
[328533535,1717499454691,-500.0,0.00029999,6]
[328533536,1717499454701,-500.0,0.00029999,6]
[328533537,1717499454711,-500.0,0.00029999,6]
[328533538,1717499454720,-500.0,0.00029999,6]
[328533539,1717499454730,-500.0,0.00029999,6]
[328533540,1717499454739,-500.0,0.00029999,6]
[328533541,1717499454749,-500.0,0.00029999,6]
[328533542,1717499454759,-500.0,0.00029999,6]
[328533543,1717499454769,-500.0,0.00029999,6]
[328533544,1717499454779,-500.0,0.00029999,6]
[328533545,1717499454789,-500.0,0.00029999,6]
[328533546,1717499454798,-500.0,0.00029999,6]
[328533547,1717499454807,-214.06,0.00029999,6]
[328533548,1717499454817,-500.0,0.00029999,6]
[328533549,1717499454827,-500.0,0.00029999,6]
[328533550,1717499454836,-500.0,0.00029999,6]
[328533551,1717499454846,-500.0,0.00029999,6]
[328533552,1717499454856,-500.0,0.00029999,6]
[328533553,1717499454866,-500.0,0.00029999,6]
[328533554,1717499454875,-476.99,0.00029999,6]
[328533555,1717499454885,-500.0,0.00029999,6]
[328533556,1717499454894,-500.0,0.00029999,6]
[328533557,1717499454903,-500.0,0.00029999,6]
[328533558,1717499454913,-500.0,0.00029999,6]
[328533559,1717499454927,-500.0,0.00029999,6]
[328533560,1717499454937,-500.0,0.00029999,6]
[328533561,1717499454946,-500.0,0.00029999,6]
[328533562,1717499454956,-500.0,0.00029999,6]
[328533563,1717499454965,-500.0,0.00029999,6]
[328533564,1717499454975,-500.0,0.00029999,6]
[328533565,1717499454984,-644.97759191,0.00029999,6]
[328533566,1717499454995,-173.12,0.00029999,6]
[328533567,1717499455004,-711.04,0.00029999,6]
[328533568,1717499455014,-711.04,0.00029999,6]
[328533569,1717499455023,-711.04,0.00029999,6]
[328533570,1717499455033,-711.04,0.00029999,6]
[328533571,1717499455042,-711.04,0.00029999,6]
[328533572,1717499455052,-711.04,0.00029999,6]
[328533573,1717499455061,-711.04,0.00029999,6]
[328533574,1717499455070,-711.04,0.00029999,6]
[328533575,1717499455080,-711.04,0.00029999,6]
[328533576,1717499455090,-711.04,0.00029999,6]
[328533577,1717499455099,-711.04,0.00029999,6]
[328533578,1717499455109,-711.04,0.00029999,6]
[328533579,1717499455119,-711.04,0.00029999,6]
[328533580,1717499455128,-711.04,0.00029999,6]
[328533581,1717499455138,-711.04,0.00029999,6]
[328533582,1717499455147,-711.13,0.00029999,6]
[328533583,1717499455156,-500.0,0.00029999,6]
[328533584,1717499455166,-500.0,0.00029999,6]
[328533585,1717499455176,-500.0,0.00029999,6]
[328533586,1717499455185,-500.0,0.00029999,6]
[328533587,1717499455196,-500.0,0.00029999,6]
[328533588,1717499455206,-500.0,0.00029999,6]
[328533589,1717499455215,-500.0,0.00029999,6]
[328533590,1717499455225,-500.0,0.00029999,6]
[328533591,1717499455234,-500.0,0.00029999,6]
[328533592,1717499455243,-196.19828611,0.00029999,6]
[328533593,1717499455253,-500.0,0.00029999,6]
[328533594,1717499455263,-500.0,0.00029999,6]
[328533595,1717499455272,-500.0,0.00029999,6]
[328533596,1717499455282,-500.0,0.00029999,6]
[328533597,1717499455291,-500.0,0.00029999,6]
[328533598,1717499455301,-500.0,0.00029999,6]
[328533599,1717499455310,-500.0,0.00029999,6]
[328533600,1717499455320,-500.0,0.00029999,6]
[328533601,1717499455329,-500.0,0.00029999,6]
[328533602,1717499455339,-500.0,0.00029999,6]
[328533603,1717499455349,-500.0,0.00029999,6]
[328533604,1717499455358,-500.0,0.00029999,6]
[328533605,1717499455368,-500.0,0.00029999,6]
[328533606,1717499455377,-634.34,0.00029999,6]
[328533607,1717499455386,-500.0,0.00029999,6]
[328533608,1717499455396,-500.0,0.00029999,6]
[328533609,1717499455405,-500.0,0.00029999,6]
[328533610,1717499455415,-500.0,0.00029999,6]
[328533611,1717499455424,-500.0,0.00029999,6]
[328533612,1717499455434,-500.0,0.00029999,6]
[328533613,1717499455443,-500.0,0.00029999,6]
[328533614,1717499455452,-500.0,0.00029999,6]
[328533615,1717499455462,-500.0,0.00029999,6]
[328533616,1717499455472,-500.0,0.00029999,6]
[328533617,1717499455482,-500.0,0.00029999,6]
[328533618,1717499455491,-612.76,0.00029999,6]
[328533619,1717499455501,-500.0,0.00029999,6]
[328533620,1717499455510,-500.0,0.00029999,6]
[328533621,1717499455520,-500.0,0.00029999,6]
[328533622,1717499455530,-500.0,0.00029999,6]
[328533623,1717499455540,-153.9,0.00029999,6]
[328533624,1717499455550,-500.0,0.00029999,6]
[328533625,1717499455560,-500.0,0.00029999,6]
[328533626,1717499455570,-160.05,0.00029999,6]
[328533627,1717499455579,-1797.8,0.00029999,6]
[328533628,1717499455589,-1797.8,0.00029999,6]
[328533629,1717499455598,-1797.8,0.00029999,6]
[328533630,1717499455608,-1797.8,0.00029999,6]
[328533631,1717499455617,-1797.8,0.00029999,6]
[328533632,1717499455627,-1797.8,0.00029999,6]
[328533633,1717499455637,-1797.8,0.00029999,6]
[328533634,1717499455646,-1797.8,0.00029999,6]
[328533635,1717499455656,-1797.8,0.00029999,6]
[328533636,1717499455666,-1797.8,0.00029999,6]
[328533637,1717499455676,-1797.8,0.00029999,6]
[328533638,1717499455685,-1063.99,0.00029999,6]
[328533639,1717499455695,-1063.99,0.00029999,6]
[328533640,1717499455704,-1063.99,0.00029999,6]
[328533641,1717499455714,-1797.8,0.00029999,6]
[328533642,1717499455723,-1797.8,0.00029999,6]
[328533643,1717499455732,-1063.99,0.00029999,6]
[328533644,1717499455742,-1797.8,0.00029999,6]
[328533645,1717499455751,-1797.8,0.00029999,6]
[328533646,1717499455761,-1063.99,0.00029999,6]
[328533647,1717499455771,-1063.99,0.00029999,6]
[328533648,1717499455780,-1797.95999999,0.00029999,6]
[328533649,1717499455790,-1063.99,0.00029999,6]
[328533650,1717499455800,-1063.99,0.00029999,6]
[328533651,1717499455809,-1063.99,0.00029999,6]
[328533652,1717499455818,-1063.99,0.00029999,6]
[328533653,1717499455827,-1063.99,0.00029999,6]
[328533654,1717499455836,-1063.99,0.00029999,6]
[328533655,1717499455846,-1063.99,0.00029999,6]
[328533656,1717499455855,-1063.99,0.00029999,6]
[328533657,1717499455865,-567.49,0.00029999,6]
[328533658,1717499455874,-567.49,0.00029999,6]
[328533659,1717499455884,-567.49,0.00029999,6]
[328533660,1717499455893,-567.49,0.00029999,6]
[328533661,1717499455903,-567.49,0.00029999,6]
[328533662,1717499455913,-559.02,0.00029999,6]
[328533663,1717499455927,-567.49,0.00029999,6]
[328533664,1717499455936,-559.02,0.00029999,6]
[328533665,1717499455946,-567.49,0.00029999,6]
[328533666,1717499455956,-567.49,0.00029999,6]
[328533667,1717499455966,-1063.99,0.00029999,6]
[328533668,1717499455975,-559.02,0.00029999,6]
[328533669,1717499455985,-567.49,0.00029999,6]
[328533670,1717499455995,-559.02,0.00029999,6]
[328533671,1717499456007,-1064.22,0.00029999,6]
[328533672,1717499456017,-567.49,0.00029999,6]
[328533673,1717499456026,-559.02,0.00029999,6]
[328533674,1717499456036,-559.02,0.00029999,6]
[328533675,1717499456045,-567.49,0.00029999,6]
[328533676,1717499456056,-559.02,0.00029999,6]
[328533677,1717499456067,-567.49,0.00029999,6]
[328533678,1717499456076,-559.02,0.00029999,6]
[328533679,1717499456087,-567.49,0.00029999,6]
[328533680,1717499456096,-559.02,0.00029999,6]
[328533681,1717499456106,-567.49,0.00029999,6]
[328533682,1717499456116,-559.02,0.00029999,6]
[328533683,1717499456126,-567.49,0.00029999,6]
[328533684,1717499456136,-559.02,0.00029999,6]
[328533685,1717499456146,-567.72,0.00029999,6]
[328533686,1717499456156,-559.02,0.00029999,6]
[328533687,1717499456167,-559.02,0.00029999,6]
[328533688,1717499456176,-559.02,0.00029999,6]
[328533689,1717499456186,-559.02,0.00029999,6]
[328533690,1717499456196,-559.06,0.00029999,6]
[328533691,1717499456206,-1238.98,0.00029999,6]
[328533692,1717499456215,-1238.98,0.00029999,6]
[328533693,1717499456225,-1238.98,0.00029999,6]
[328533694,1717499456235,-2316.49,0.00029999,6]
[328533695,1717499456245,-1238.98,0.00029999,6]
[328533696,1717499456255,-2316.49,0.00029999,6]
[328533697,1717499456264,-1238.98,0.00029999,6]
[328533698,1717499456274,-2316.49,0.00029999,6]
[328533699,1717499456284,-1238.98,0.00029999,6]
[328533700,1717499456294,-2316.49,0.00029999,6]
[328533701,1717499456304,-1238.98,0.00029999,6]
[328533702,1717499456314,-2316.49,0.00029999,6]
[328533703,1717499456323,-1238.98,0.00029999,6]
[328533704,1717499456333,-2316.49,0.00029999,6]
[328533705,1717499456342,-1238.98,0.00029999,6]
[328533706,1717499456352,-2316.49,0.00029999,6]
[328533707,1717499456361,-1238.98,0.00029999,6]
[328533708,1717499456371,-1238.98,0.00029999,6]
[328533709,1717499456380,-2316.49,0.00029999,6]
[328533710,1717499456389,-1238.98,0.00029999,6]
[328533711,1717499456399,-2316.49,0.00029999,6]
[328533712,1717499456408,-1238.98,0.00029999,6]
[328533713,1717499456417,-2316.49,0.00029999,6]
[328533714,1717499456427,-1238.98,0.00029999,6]
[328533715,1717499456436,-1238.98,0.00029999,6]
[328533716,1717499456445,-2316.49,0.00029999,6]
[328533717,1717499456454,-1239.11,0.00029999,6]
[328533718,1717499456463,-2316.49,0.00029999,6]
[328533719,1717499456473,-2316.49,0.00029999,6]
[328533720,1717499456483,-2316.49,0.00029999,6]
[328533721,1717499456493,-2316.49,0.00029999,6]
[328533722,1717499456503,-514.86,0.00029999,6]
[328533723,1717499456513,-2316.6211,0.00029999,6]
[328533724,1717499456523,-514.86,0.00029999,6]
[328533725,1717499456533,-514.86,0.00029999,6]
[328533726,1717499456543,-514.86,0.00029999,6]
[328533727,1717499456552,-514.86,0.00029999,6]
[328533728,1717499456561,-514.86,0.00029999,6]
[328533729,1717499456571,-514.86,0.00029999,6]
[328533730,1717499456580,-514.86,0.00029999,6]
[328533731,1717499456589,-514.86,0.00029999,6]
[328533732,1717499456601,-514.86,0.00029999,6]
[328533733,1717499456623,-514.86,0.00029999,6]
[328533734,1717499456639,-514.86,0.00029999,6]
[328533735,1717499456648,-500.0,0.00029999,6]
[328533736,1717499456657,-514.86,0.00029999,6]
[328533737,1717499456667,-500.0,0.00029999,6]
[328533738,1717499456676,-514.86,0.00029999,6]
[328533739,1717499456685,-514.86,0.00029999,6]
[328533740,1717499456694,-500.0,0.00029999,6]
[328533741,1717499456704,-515.04,0.00029999,6]
[328533742,1717499456714,-500.0,0.00029999,6]
[328533743,1717499456724,-500.0,0.00029999,6]
[328533744,1717499456733,-500.0,0.00029999,6]
[328533745,1717499456743,-500.0,0.00029999,6]
[328533746,1717499456754,-500.0,0.00029999,6]
[328533747,1717499456764,-500.0,0.00029999,6]
[328533748,1717499456775,-500.0,0.00029999,6]
[328533749,1717499456784,-500.0,0.00029999,6]
[328533750,1717499456793,-500.0,0.00029999,6]
[328533751,1717499456803,-500.0,0.00029999,6]
[328533752,1717499456813,-500.0,0.00029999,6]
[328533753,1717499456822,-500.0,0.00029999,6]
[328533754,1717499456831,-330.16392166,0.00029999,6]
[328533755,1717499456841,-500.0,0.00029999,6]
[328533756,1717499456850,-500.0,0.00029999,6]
[328533757,1717499456860,-500.0,0.00029999,6]
[328533758,1717499456869,-500.0,0.00029999,6]
[328533759,1717499456879,-500.0,0.00029999,6]
[328533760,1717499456888,-500.0,0.00029999,6]
[328533761,1717499456897,-500.0,0.00029999,6]
[328533762,1717499456907,-500.0,0.00029999,6]
[328533763,1717499456918,-500.0,0.00029999,6]
[328533764,1717499456929,-500.0,0.00029999,6]
[328533765,1717499456938,-500.0,0.00029999,6]
[328533766,1717499456947,-500.0,0.00029999,6]
[328533767,1717499456956,-500.0,0.00029999,6]
[328533768,1717499456967,-500.0,0.00029999,6]
[328533769,1717499456976,-500.0,0.00029999,6]
[328533770,1717499456986,-500.0,0.00029999,6]
[328533771,1717499456996,-500.0,0.00029999,6]
[328533772,1717499457006,-500.0,0.00029999,6]
[328533773,1717499457014,-500.0,0.00029999,6]
[328533774,1717499457024,-611.05,0.00029999,6]
[328533775,1717499457033,-500.0,0.00029999,6]
[328533776,1717499457043,-500.0,0.00029999,6]
[328533777,1717499457052,-500.0,0.00029999,6]
[328533778,1717499457062,-500.0,0.00029999,6]
[328533779,1717499457071,-500.0,0.00029999,6]
[328533780,1717499457080,-153.72,0.00029999,6]
[328533781,1717499457090,-500.0,0.00029999,6]
[328533782,1717499457099,-500.0,0.00029999,6]
[328533783,1717499457109,-347.81,0.00029999,6]
[328533784,1717499457242,-500.0,0.00029999,6]
[328533785,1717499457252,-500.0,0.00029999,6]
[328533786,1717499457262,-500.0,0.00029999,6]
[328533787,1717499457271,-500.0,0.00029999,6]
[328533788,1717499457280,-393.18693576,0.00029999,6]
[328533789,1717499457289,-500.0,0.00029999,6]
[328533790,1717499457298,-622.94,0.00029999,6]
[328533791,1717499457307,-666.09,0.00029999,6]
[328533792,1717499457316,-666.09,0.00029999,6]
[328533793,1717499457325,-666.09,0.00029999,6]
[328533794,1717499457335,-666.09,0.00029999,6]
[328533795,1717499457344,-666.09,0.00029999,6]
[328533796,1717499457353,-666.09,0.00029999,6]
[328533797,1717499457362,-666.09,0.00029999,6]
[328533798,1717499457371,-500.0,0.00029999,6]
[328533799,1717499457380,-308.127154,0.00029999,6]
[328533800,1717499457455,-151.0,0.00029589,7]
[328533801,1717499457464,-271.695262,0.00029589,7]
[328533802,1717499457474,-500.0,0.00029898,6]
[328533803,1717499457484,-500.0,0.00029981,6]
[328533804,1717499457493,-419.929477,0.00029997,7]
[328533805,1717499457502,-500.0,0.00029997,6]
[328533806,1717499457511,-500.0,0.00029997,6]
[328533807,1717499457520,-419.929477,0.00029998,7]
[328533808,1717499457529,-357.962846,0.00029999,6]
[328533809,1717499457539,-500.0,0.00029999,6]
[328533810,1717499457548,-666.09,0.00029999,6]
[328533811,1717499457557,-500.0,0.00029999,6]
[328533812,1717499457567,-666.09,0.00029999,6]
[328533813,1717499457576,-500.0,0.00029999,6]
[328533814,1717499457585,-666.09,0.00029999,6]
[328533815,1717499457595,-500.0,0.00029999,6]
[328533816,1717499457603,-666.09,0.00029999,6]
[328533817,1717499457613,-500.0,0.00029999,6]
[328533818,1717499457623,-666.09,0.00029999,6]
[328533819,1717499457632,-666.09,0.00029999,6]
[328533820,1717499457641,-500.0,0.00029999,6]
[328533821,1717499457651,-666.09,0.00029999,6]
[328533822,1717499457660,-500.0,0.00029999,6]
[328533823,1717499457671,-500.0,0.00029999,6]
[328533824,1717499457680,-666.24552146,0.00029999,6]
[328533825,1717499457690,-500.0,0.00029999,6]
[328533826,1717499457699,-500.0,0.00029999,6]
[328533827,1717499457708,-500.0,0.00029999,6]
[328533828,1717499457718,-500.0,0.00029999,6]
[328533829,1717499457728,-500.0,0.00029999,6]
[328533830,1717499457738,-500.0,0.00029999,6]
[328533831,1717499457747,-500.0,0.00029999,6]
[328533832,1717499457756,-251.21251059,0.00029999,6]
[328533833,1717499457766,-500.0,0.00029999,6]
[328533834,1717499457775,-500.0,0.00029999,6]
[328533835,1717499457784,-500.0,0.00029999,6]
[328533836,1717499457794,-500.0,0.00029999,6]
[328533837,1717499457803,-500.0,0.00029999,6]
[328533838,1717499457813,-500.0,0.00029999,6]
[328533839,1717499457822,-500.0,0.00029999,6]
[328533840,1717499457831,-500.0,0.00029999,6]
[328533841,1717499457840,-500.0,0.00029999,6]
[328533842,1717499457849,-500.0,0.00029999,6]
[328533843,1717499457859,-632.59,0.00029999,6]
[328533844,1717499457868,-500.0,0.00029999,6]
[328533845,1717499457878,-500.0,0.00029999,6]
[328533846,1717499457887,-500.0,0.00029999,6]
[328533847,1717499457897,-500.0,0.00029999,6]
[328533848,1717499457906,-500.0,0.00029999,6]
[328533849,1717499457919,-500.0,0.00029999,6]
[328533850,1717499457931,-578.27,0.00029999,6]
[328533851,1717499457940,-500.0,0.00029999,6]
[328533852,1717499457949,-500.0,0.00029999,6]
[328533853,1717499457960,-500.0,0.00029999,6]
[328533854,1717499457970,-500.0,0.00029999,6]
[328533855,1717499457979,-466.31,0.00029999,6]
[328533856,1717499457988,-1945.47,0.00029999,6]
[328533857,1717499457999,-1945.47,0.00029999,6]
[328533858,1717499458008,-1945.47,0.00029999,6]
[328533859,1717499458017,-1945.47,0.00029999,6]
[328533860,1717499458027,-1945.47,0.00029999,6]
[328533861,1717499458036,-1945.47,0.00029999,6]
[328533862,1717499458045,-1945.47,0.00029999,6]
[328533863,1717499458055,-1945.47,0.00029999,6]
[328533864,1717499458065,-1945.47,0.00029999,6]
[328533865,1717499458075,-1945.47,0.00029999,6]
[328533866,1717499458085,-1945.47,0.00029999,6]
[328533867,1717499458095,-795.61311563,0.00029999,6]
[328533868,1717499458124,-500.0,0.00029997,6]
[328533869,1717499458134,-419.929477,0.00029998,7]
[328533870,1717499458143,-1149.85688437,0.00029999,6]
[328533871,1717499458153,-898.79975929,0.00029999,6]
[328533872,1717499458164,-1046.67024071,0.00029999,6]
[328533873,1717499458175,-1945.47,0.00029999,6]
[328533874,1717499458184,-1945.47,0.00029999,6]
[328533875,1717499458194,-233.02889112,0.00029999,6]
[328533876,1717499458206,-1712.64920888,0.00029999,6]
[328533877,1717499458215,-505.47,0.00029999,6]
[328533878,1717499458225,-505.47,0.00029999,6]
[328533879,1717499458234,-138.88049997,0.00029999,6]
[328533880,1717499458246,-366.58950003,0.00029999,6]
[328533881,1717499458255,-505.47,0.00029999,6]
[328533882,1717499458265,-505.47,0.00029999,6]
[328533883,1717499458275,-505.47,0.00029999,6]
[328533884,1717499458284,-505.47,0.00029999,6]
[328533885,1717499458294,-46.2302322,0.00029999,6]
[328533886,1717499458305,-459.2397678,0.00029999,6]
[328533887,1717499458315,-505.47,0.00029999,6]
[328533888,1717499458325,-122.66931214,0.00029999,6]
[328533889,1717499458337,-382.80068786,0.00029999,6]
[328533890,1717499458347,-505.47,0.00029999,6]
[328533891,1717499458357,-505.47,0.00029999,6]
[328533892,1717499458367,-505.47,0.00029999,6]
[328533893,1717499458377,-505.47,0.00029999,6]
[328533894,1717499458387,-505.47,0.00029999,6]
[328533895,1717499458396,-505.59999998,0.00029999,6]
[328533896,1717499458406,-753.70676217,0.00029999,6]
[328533897,1717499458418,-2.72323783,0.00029999,6]
[328533898,1717499458427,-756.43,0.00029999,6]
[328533899,1717499458435,-756.43,0.00029999,6]
[328533900,1717499458445,-756.43,0.00029999,6]
[328533901,1717499458454,-756.43,0.00029999,6]
[328533902,1717499458463,-756.43,0.00029999,6]
[328533903,1717499458473,-756.43,0.00029999,6]
[328533904,1717499458482,-756.43,0.00029999,6]
[328533905,1717499458491,-587.0,0.00029999,6]
[328533906,1717499458501,-587.0,0.00029999,6]
[328533907,1717499458510,-366.37702432,0.00029999,6]
[328533908,1717499458521,-390.05297568,0.00029999,6]
[328533909,1717499458530,-587.0,0.00029999,6]
[328533910,1717499458540,-756.43,0.00029999,6]
[328533911,1717499458549,-486.40386962,0.00029999,6]
[328533912,1717499458662,-419.929477,0.00029589,7]
[328533913,1717499458673,-419.929477,0.00029589,7]
[328533914,1717499458682,-218.73631156,0.00029589,7]
[328533915,1717499458693,-201.19316544,0.00029589,7]
[328533916,1717499458702,-419.929477,0.00029891,7]
[328533917,1717499458711,-68.49327592,0.000299,7]
[328533939,1717500580943,1817.35,0.00031,90]
[328533944,1717500632108,-307.8334,0.00017258,2]
[328533945,1717500632296,-37.54918781,0.00017258,2]
[328533946,1717500632305,-212.58663007,0.00017259,2]
[328533948,1717500638215,-2304.47375792,0.00017259,2]
[328533949,1717500638228,-2374.95090152,0.00017259,2]
[328533950,1717500638239,-2640.22,0.00017259,2]
[328533951,1717500638386,-262.11053112,0.00017259,2]
[328533953,1717500638396,-1854.09,0.00018325,2]
[328533954,1717500638405,-3287.0,0.000207,3]
[328533955,1717500638415,-1854.09,0.00021064,2]
[328533956,1717500638424,-1854.09,0.00023804,2]
[328533957,1717500638434,-385.82,0.00024242,2]
[328533958,1717500638443,-158.46,0.00024384,2]
[328533959,1717500638453,-151.58,0.00024384,2]
[328533960,1717500638463,-999.99,0.00024384,2]
[328533961,1717500638472,-600.0,0.00024806,2]
[328533962,1717500638482,-499.99,0.00024806,2]
[328533963,1717500638492,-705.76957178,0.00025022,2]
[328533964,1717500638502,-700.0,0.00025023,2]
[328533965,1717500638512,-600.0,0.00025354,2]
[328533966,1717500638522,-600.0,0.00025902,2]
[328533967,1717500638532,-150.0,0.00026156,2]
[328533968,1717500638542,-600.0,0.0002645,2]
[328533969,1717500638552,-385.82,0.00026506,2]
[328533970,1717500638561,-250.0,0.00026649,2]
[328533971,1717500638571,-250.0,0.00026699,2]
[328533972,1717500638581,-167.36,0.00026861,2]
[328533973,1717500638590,-600.0,0.00026998,2]
[328533975,1717500638600,-167.36,0.00027211,2]
[328533977,1717500638611,-167.36,0.00027561,2]
[328533978,1717500638631,-275.94,0.00027885,2]
[328533979,1717500638641,-164.7,0.00027899,2]
[328533980,1717500638652,-167.36,0.00027911,2]
[328533981,1717500638661,-23900.0,0.00028074,2]
[328533982,1717500638671,-509.82639834,0.00028094,2]
[328533983,1717500638685,-90.17360166,0.00028094,2]
[328533984,1717500638695,-2143.854,0.00028244,2]
[328533985,1717500638706,-167.36,0.00028261,2]
[328533986,1717500638716,-7323.15413047,0.00028385,2]
[328533987,1717500638726,-705.16,0.00028395,2]
[328533988,1717500638737,-1000.0,0.00028434,2]
[328533989,1717500638747,-385.82,0.0002877,2]
[328533990,1717500638758,-403.05,0.0002887,10]
[328533991,1717500638768,-335.88,0.0002887,10]
[328533992,1717500638778,-27692.44887287,0.0002888,7]
[328534041,1717500643413,-279.9,0.0002887,10]
[328534042,1717500643423,-2602.35236112,0.0002888,7]
[328534043,1717500643435,-4077.4858297,0.0002888,7]
[328534067,1717500646156,-55315.01927412,0.0002888,7]
[328534069,1717500646166,-12700.67906269,0.00029,3]
[328534071,1717500646176,-150509.69,0.00029,14]
[328534073,1717500646186,-177.19700383,0.0002909,2]
[328534075,1717500646196,-600.0,0.0002919,2]
[328534077,1717500646205,-177.19700376,0.00029206,2]
[328534079,1717500646214,-154.81972221,0.00029318,2]
[328534081,1717500646224,-177.19700376,0.00029321,2]
[328534083,1717500646234,-153.05703102,0.00029371,2]
[328534085,1717500646243,-302.94088083,0.00029404,2]
[328534087,1717500646253,-178.73180772,0.00029435,2]
[328534089,1717500646263,-177.19700376,0.00029437,2]
[328534091,1717500646274,-154.06866177,0.00029456,2]
[328534093,1717500646286,-171.50573862,0.00029459,2]
[328534095,1717500646296,-154.81972221,0.00029462,2]
[328534097,1717500646305,-302.94088083,0.00029467,2]
[328534099,1717500646315,-294.38039826,0.00029477,2]
[328534101,1717500646326,-166.66666667,0.00029513,2]
[328534103,1717500646335,-302.94088083,0.00029519,2]
[328534104,1717500646344,-500.0,0.00029532,2]
[328534105,1717500646356,-200.0,0.00029532,2]
[328534106,1717500646366,-177.19700376,0.00029553,2]
[328534107,1717500646376,-198.74978827,0.00029574,2]
[328534108,1717500646386,-500.0,0.00029589,6]
[328534109,1717500646395,-500.0,0.00029589,6]
[328534110,1717500646404,-500.0,0.00029589,6]
[328534111,1717500646414,-302.94088083,0.00029627,2]
[328534112,1717500646424,-302.94088083,0.00029654,2]
[328534113,1717500646433,-153.42536743,0.00029657,2]
[328534114,1717500646444,-177.19700376,0.00029669,2]
[328534115,1717500646454,-294.38039826,0.00029676,2]
[328534116,1717500646468,-154.06866177,0.00029713,2]
[328534117,1717500646478,-171.50573862,0.00029718,2]
[328534118,1717500646487,-171.50573862,0.00029724,2]
[328534119,1717500646497,-294.38039826,0.0002974,2]
[328534120,1717500646507,-294.38039826,0.00029745,2]
[328534121,1717500646516,-150.0,0.00029751,2]
[328534122,1717500646527,-294.38039826,0.0002976,2]
[328534123,1717500646537,-177.19700376,0.00029784,2]
[328534124,1717500646547,-151.17361003,0.00029785,2]
[328534125,1717500646557,-300.0,0.00029788,2]
[328534126,1717500646566,-171.50573862,0.00029789,2]
[328534127,1717500646575,-300.0,0.0002979,2]
[328534128,1717500646584,-155.6087855,0.000298,2]
[328534129,1717500646594,-315.91197088,0.000298,2]
[328534130,1717500646604,-302.94088083,0.00029819,2]
[328534131,1717500646613,-302.94088083,0.00029828,2]
[328534132,1717500646623,-300.0,0.00029843,2]
[328534133,1717500646632,-315.91197086,0.0002985,2]